bitfinex/quotes_SOLUSD_20250413
["timestamp","ask_amount","ask_price","bid_price","bid_amount"]
[1744508238134,6.0416,132.43,132.37,0.03]
[1744508238336,23.69716268,132.43,132.38,23.69716268]
[1744508238536,31.55716268,132.44,132.39,23.69716268]
[1744508238741,31.55716268,132.44,132.39,31.25026268]
[1744508239143,7.86,132.44,132.4,23.69716268]
[1744508239458,31.55716268,132.44,132.39,31.25026268]
[1744508239751,23.69716268,132.4,132.31,18.79181043]
[1744508239943,23.69716268,132.42,132.37,23.69716268]
[1744508240139,23.69716268,132.4,132.31,0.14216157]
[1744508240344,23.69716268,132.38,132.33,23.69716268]
[1744508240544,23.69716268,132.37,132.32,23.72716268]
[1744508240746,23.69716268,132.37,132.33,7.5568]
[1744508240952,23.69716268,132.35,132.32,7.5872]
[1744508241249,23.69716268,132.33,132.32,0.03]
[1744508241453,31.53716268,132.34,132.32,0.03]
[1744508244141,42.48897311,132.33,132.32,0.03]
[1744508244660,50.32897311,132.33,132.32,0.03]
[1744508245345,50.61329625,132.33,132.32,0.03]
[1744508246052,8.12432314,132.33,132.32,0.03]
[1744508246255,50.61329625,132.33,132.32,0.03]
[1744508246552,0.28432314,132.32,132.26,31.25786268]
[1744508246731,19.07613357,132.32,132.26,7.5607]
[1744508246931,23.69716268,132.3,132.26,7.5607]
[1744508247150,0.42648471,132.32,132.25,23.69716268]
[1744508247362,0.42648471,132.32,132.26,16.08448185]
[1744508247551,16.08448185,132.3,132.25,23.64568185]
[1744508247936,16.08448185,132.29,132.25,7.5612]
[1744508248757,16.08448185,132.3,132.25,23.64568185]
[1744508249158,18.64964886,132.34,132.27,16.08448185]
[1744508249366,16.08448185,132.3,132.25,7.5612]
[1744508249658,16.08448185,132.3,132.25,23.64568185]
[1744508249836,16.08448185,132.31,132.26,16.08448185]
[1744508250359,16.08448185,132.3,132.25,23.64568185]
[1744508250740,16.08448185,132.3,132.24,26.4969]
[1744508250935,16.08448185,132.29,132.24,7.592]
[1744508251135,0.28432314,132.3,132.24,23.67648185]
[1744508251332,16.36880499,132.3,132.25,16.08448185]
[1744508252946,16.36880499,132.3,132.25,23.64538185]
[1744508254264,16.08448185,132.29,132.25,7.5609]
[1744508254440,23.92448185,132.28,132.24,7.5618]
[1744508254754,23.92448185,132.28,132.19,42.59138185]
[1744508254755,16.08448185,132.25,132.19,42.59138185]
[1744508255061,16.08448185,132.21,132.19,7.5948]
[1744508255575,35.16061542,132.2,132.19,0.03]
[1744508256467,43.00061542,132.2,132.19,0.03]
[1744508256665,59.08509727,132.2,132.19,0.03]
[1744508256979,19.07613357,132.19,132.07,26.0]
[1744508257254,23.81434409,132.16,132.11,39.89882594]
[1744508257474,23.81434409,132.15,132.1,23.81434409]
[1744508257649,31.65434409,132.15,132.1,23.81434409]
[1744508257854,31.65434409,132.15,132.06,23.81434409]
[1744508257855,7.84,132.15,132.11,23.81434409]
[1744508258039,8.12432314,132.19,132.08,0.14216157]
[1744508258241,23.81434409,132.14,132.07,18.9293]
[1744508258449,23.81434409,132.14,132.09,23.81434409]
[1744508258759,23.81434409,132.13,132.07,18.9293]
[1744508258933,23.81434409,132.12,132.07,42.74364409]
[1744508259139,23.81434409,132.12,132.07,18.9293]
[1744508259342,23.81434409,132.12,132.07,42.74364409]
[1744508259541,23.81434409,132.14,132.09,23.81434409]
[1744508259956,7.84,132.18,132.12,23.81434409]
[1744508260157,6.1351,132.22,132.16,23.81434409]
[1744508260377,1.568,132.24,132.18,23.81434409]
[1744508260541,23.81434409,132.24,132.19,23.81434409]
[1744508260849,23.81434409,132.21,132.13,7.84]
[1744508261051,23.81434409,132.2,132.14,26.487]
[1744508261366,23.81434409,132.21,132.14,26.487]
[1744508261662,23.81434409,132.19,132.15,23.81434409]
[1744508261844,23.81434409,132.19,132.14,26.487]
[1744508262043,23.81434409,132.19,132.14,50.30134409]
[1744508262557,23.81434409,132.18,132.14,7.5677]
[1744508262743,26.773972,132.21,132.12,7.5688]
[1744508262744,23.81434409,132.16,132.12,7.5688]
[1744508262945,23.81434409,132.14,132.1,7.57]
[1744508263740,23.81434409,132.13,132.1,7.57]
[1744508264052,23.81434409,132.14,132.1,7.57]
[1744508264245,23.81434409,132.14,132.08,18.9268]
[1744508264449,23.81434409,132.14,132.09,23.81434409]
[1744508264648,23.81434409,132.13,132.08,42.74114409]
[1744508264958,23.81434409,132.12,132.07,7.5717]
[1744508265161,88.86,132.16,132.07,26.501]
[1744508265470,23.81434409,132.13,132.08,23.81434409]
[1744508266161,88.86,132.16,132.1,7.57]
[1744508266368,23.81434409,132.15,132.1,31.38434409]
[1744508266563,23.81434409,132.15,132.1,7.57]
[1744508266867,23.81434409,132.13,132.1,7.57]
[1744508267249,15.4266,132.16,132.07,7.5717]
[1744508267250,23.81434409,132.11,132.07,7.5717]
[1744508267464,23.81434409,132.09,132.05,7.5728]
[1744508267760,0.28432314,132.11,132.05,31.38714409]
[1744508267950,23.81434409,132.1,132.05,31.38714409]
[1744508268553,0.28432314,132.11,132.05,31.38714409]
[1744508268751,23.81434409,132.09,132.05,31.38714409]
[1744508268955,88.5673,132.15,132.06,23.81434409]
[1744508269169,23.81434409,132.12,132.07,23.81434409]
[1744508269341,23.81434409,132.13,132.08,23.81434409]
[1744508269543,23.81434409,132.1,132.05,26.505]
[1744508269747,23.81434409,132.11,132.06,23.81434409]
[1744508269945,7.9,132.14,132.08,23.81434409]
[1744508270266,23.81434409,132.16,132.11,23.81434409]
[1744508270448,14.1667,132.18,132.12,7.5688]
[1744508270647,14.1667,132.18,132.13,23.81434409]
[1744508270648,37.98104409,132.18,132.13,23.81434409]
[1744508270972,31.71434409,132.18,132.13,23.81434409]
[1744508271151,7.9,132.18,132.13,23.81434409]
[1744508271346,23.81434409,132.21,132.16,23.81434409]
[1744508271546,23.81434409,132.21,132.12,50.30524409]
[1744508271547,23.81434409,132.2,132.15,23.81434409]
[1744508271761,23.81434409,132.18,132.12,26.4909]
[1744508271955,23.81434409,132.16,132.12,7.5688]
[1744508272153,23.81434409,132.17,132.12,31.38314409]
[1744508272469,7.5647,132.2,132.14,23.81434409]
[1744508272645,23.81434409,132.16,132.1,7.57]
[1744508272845,23.81434409,132.15,132.1,31.38434409]
[1744508273164,31.71434409,132.18,132.13,23.81434409]
[1744508273367,31.71434409,132.18,132.1,26.495]
[1744508273669,23.81434409,132.17,132.12,23.81434409]
[1744508273853,23.81434409,132.15,132.11,23.81434409]
[1744508274247,23.81434409,132.15,132.1,50.30934409]
[1744508274449,23.81434409,132.16,132.11,23.81434409]
[1744508275659,0.28432314,132.17,132.11,23.81434409]
[1744508275959,23.81434409,132.15,132.1,23.81434409]
[1744508276360,23.81434409,132.15,132.07,26.501]
[1744508276565,23.81434409,132.15,132.1,23.81434409]
[1744508277787,23.81434409,132.16,132.12,7.5688]
[1744508278762,7.9,132.18,132.12,31.38314409]
[1744508278967,23.81434409,132.16,132.12,7.5688]
[1744508279376,16.11906822,132.16,132.12,7.5688]
[1744508279577,16.11906822,132.15,132.12,7.5688]
[1744508279751,16.11906822,132.16,132.11,16.11906822]
[1744508279952,16.11906822,132.17,132.12,16.11906822]
[1744508280153,8.18432314,132.18,132.13,16.11906822]
[1744508280154,24.01906822,132.18,132.13,16.11906822]
[1744508280357,26.35561043,132.21,132.14,16.11906822]
[1744508280358,26.69181043,132.21,132.14,16.11906822]
[1744508280579,16.11906822,132.18,132.13,16.11906822]
[1744508280977,16.11906822,132.17,132.12,16.11906822]
[1744508281284,16.11906822,132.18,132.09,1.5223]
[1744508281457,16.11906822,132.18,132.13,16.11906822]
[1744508281675,16.11906822,132.18,132.14,7.5677]
[1744508282070,16.11906822,132.2,132.15,16.11906822]
[1744508282273,16.11906822,132.16,132.11,18.9225]
[1744508282493,16.11906822,132.15,132.11,35.04156822]
[1744508282684,16.11906822,132.18,132.08,26.4978]
[1744508282685,16.11906822,132.14,132.08,26.4978]
[1744508282868,7.9,132.17,132.11,16.11906822]
[1744508283069,7.9,132.17,132.08,64.3536]
[1744508283276,7.9412,132.25,132.16,16.11906822]
[1744508283477,7.9,132.26,132.21,16.11906822]
[1744508283686,24.01906822,132.26,132.22,7.5631]
[1744508283906,6.45026157,132.29,132.22,23.68216822]
[1744508284083,22.56932979,132.29,132.24,16.11906822]
[1744508284291,16.11906822,132.25,132.15,18.9178]
[1744508284594,16.11906822,132.24,132.19,16.11906822]
[1744508284807,81.0,132.28,132.21,16.11906822]
[1744508285095,16.11906822,132.25,132.2,16.11906822]
[1744508285321,23.77985539,132.25,132.2,23.77985539]
[1744508285665,23.77985539,132.25,132.14,8.70236157]
[1744508285666,81.0,132.28,132.22,23.77985539]
[1744508285998,23.77985539,132.26,132.21,23.77985539]
[1744508286490,23.77985539,132.28,132.23,23.77985539]
[1744508286691,9.68106157,132.3,132.23,23.77985539]
[1744508287005,23.77985539,132.26,132.21,23.77985539]
[1744508287207,23.77985539,132.27,132.22,23.77985539]
[1744508287499,23.77985539,132.28,132.23,23.77985539]
[1744508287820,23.77985539,132.26,132.21,18.9091]
[1744508288000,23.77985539,132.26,132.21,42.68895539]
[1744508288302,23.77985539,132.26,132.2,7.5642]
[1744508288303,23.77985539,132.24,132.2,7.5642]
[1744508288470,23.77985539,132.22,132.16,7.5665]
[1744508288671,23.77985539,132.23,132.18,23.77985539]
[1744508288977,23.77985539,132.24,132.18,23.77985539]
[1744508289292,23.77985539,132.23,132.17,23.77985539]
[1744508289678,23.77985539,132.22,132.17,31.34565539]
[1744508289887,23.77985539,132.21,132.17,7.5658]
[1744508290279,23.77985539,132.22,132.17,7.5658]
[1744508291484,142.48096582,132.21,132.1,19.9237]
[1744508291691,23.77985539,132.17,132.06,6.5433]
[1744508291868,23.77985539,132.15,132.1,23.77985539]
[1744508292198,23.77985539,132.16,132.1,23.77985539]
[1744508292578,23.77985539,132.16,132.06,30.32315539]
[1744508292579,23.77985539,132.15,132.06,30.32315539]
[1744508292787,0.28432314,132.18,132.11,23.77985539]
[1744508293092,23.77985539,132.16,132.11,23.77985539]
[1744508293282,23.77985539,132.16,132.1,23.77985539]
[1744508293671,69.19292739,132.18,132.07,7.5717]
[1744508293990,23.77985539,132.16,132.1,23.77985539]
[1744508294182,23.77985539,132.16,132.07,7.5717]
[1744508294382,23.77985539,132.16,132.1,23.77985539]
[1744508294776,23.77985539,132.15,132.1,31.34935539]
[1744508295183,23.77985539,132.15,132.09,31.35015539]
[1744508295385,23.77985539,132.14,132.09,31.35015539]
[1744508295877,23.77985539,132.15,132.09,31.35015539]
[1744508296206,23.77985539,132.16,132.11,23.77985539]
[1744508296503,7.5655,132.18,132.12,23.77985539]
[1744508296712,23.77985539,132.16,132.12,7.5688]
[1744508297416,23.77985539,132.17,132.12,31.34865539]
[1744508297601,23.77985539,132.17,132.12,7.5688]
[1744508297790,23.77985539,132.16,132.1,7.57]
[1744508297992,7.5654,132.18,132.1,31.34985539]
[1744508298313,23.77985539,132.16,132.11,23.77985539]
[1744508298807,23.77985539,132.15,132.1,31.34985539]
[1744508299496,23.77985539,132.11,132.07,7.5717]
[1744508299885,23.77985539,132.1,132.07,7.5717]
[1744508300505,23.77985539,132.11,132.07,7.5717]
[1744508301386,1.6611,132.17,132.09,23.77985539]
[1744508301597,23.77985539,132.13,132.08,23.77985539]
[1744508301800,1.6611,132.17,132.08,23.77985539]
[1744508302094,23.77985539,132.14,132.09,23.77985539]
[1744508302305,23.77985539,132.18,132.1,23.77985539]
[1744508302488,18.79181043,132.16,132.05,7.5728]
[1744508302691,23.77985539,132.09,132.05,7.5728]
[1744508303100,23.77985539,132.08,132.04,7.5733]
[1744508303307,23.77985539,132.07,132.02,23.77985539]
[1744508303504,23.77985539,132.1,132.05,23.77985539]
[1744508303810,7.5694,132.11,132.04,23.77985539]
[1744508304016,23.77985539,132.1,132.05,23.77985539]
[1744508304314,7.5694,132.11,132.06,23.77985539]
[1744508304315,23.77985539,132.11,132.06,23.77985539]
[1744508304608,23.77985539,132.11,132.02,26.5111]
[1744508304609,23.77985539,132.09,132.04,23.77985539]
[1744508305012,39.38885539,132.12,132.05,7.5728]
[1744508305214,23.77985539,132.1,132.05,31.35265539]
[1744508305521,23.77985539,132.11,132.05,31.35265539]
[1744508306102,23.77985539,132.13,132.08,23.77985539]
[1744508306412,15.6065,132.16,132.08,23.77985539]
[1744508306709,112.73145539,132.18,132.12,23.77985539]
[1744508306710,81.0,132.18,132.12,23.77985539]
[1744508306892,23.77985539,132.17,132.12,23.77985539]
[1744508307098,23.77985539,132.16,132.11,23.77985539]
[1744508307399,16.1193397,132.16,132.11,16.1193397]
[1744508307711,16.1193397,132.17,132.11,16.1193397]
[1744508307924,7.565,132.19,132.11,16.1193397]
[1744508307925,16.1193397,132.16,132.11,16.1193397]
[1744508308725,7.565,132.19,132.12,16.1193397]
[1744508308925,8.04,132.21,132.14,23.6870397]
[1744508309218,16.1193397,132.21,132.15,16.1193397]
[1744508309421,0.063,132.24,132.17,16.1193397]
[1744508309593,16.1193397,132.22,132.17,16.1193397]
[1744508310406,16.1193397,132.23,132.17,16.1193397]
[1744508310607,16.1193397,132.23,132.18,16.1193397]
[1744508310918,16.1193397,132.23,132.19,7.5648]
[1744508311714,16.1193397,132.2,132.14,8.04]
[1744508311911,16.1193397,132.2,132.13,18.9196]
[1744508311912,16.1193397,132.19,132.15,7.5671]
[1744508312222,16.1193397,132.17,132.11,18.9235]
[1744508312518,7.5626,132.23,132.15,16.1193397]
[1744508313001,16.1193397,132.21,132.17,7.566]
[1744508314403,7.5626,132.23,132.18,16.1193397]
[1744508314404,16.1193397,132.23,132.18,16.1193397]
[1744508315000,16.1823397,132.24,132.19,16.1193397]
[1744508315315,0.063,132.24,132.2,16.1193397]
[1744508315519,0.063,132.24,132.22,16.1193397]
[1744508315700,0.063,132.24,132.21,16.1193397]
[1744508315901,0.063,132.24,132.22,16.1193397]
[1744508316610,0.063,132.24,132.21,16.1193397]
[1744508317422,0.063,132.24,132.23,16.1193397]
[1744508317617,16.1823397,132.24,132.2,7.5642]
[1744508317921,16.1193397,132.23,132.19,7.5648]
[1744508318915,16.1823397,132.24,132.19,23.6841397]
[1744508319219,0.063,132.24,132.23,16.1193397]
[1744508320720,0.063,132.24,132.23,23.6818397]
[1744508326429,0.063,132.24,132.21,7.5637]
[1744508326607,16.1193397,132.23,132.18,16.1193397]
[1744508327929,16.1193397,132.23,132.19,7.5648]
[1744508328334,16.1823397,132.24,132.19,7.5648]
[1744508328636,16.1193397,132.23,132.15,9.6114]
[1744508328816,16.1193397,132.21,132.16,16.1193397]
[1744508329013,24.02866284,132.24,132.16,7.5665]
[1744508329211,16.1193397,132.2,132.16,7.5665]
[1744508329625,24.02866284,132.24,132.13,18.9193]
[1744508329626,16.1193397,132.19,132.14,7.5677]
[1744508329832,16.1193397,132.19,132.14,23.6870397]
[1744508330233,16.1193397,132.18,132.14,7.5677]
[1744508330532,16.1193397,132.16,132.12,7.5684]
[1744508330741,16.1193397,132.17,132.12,23.6877397]
[1744508331112,26.75522314,132.22,132.12,23.6877397]
[1744508331429,16.1193397,132.17,132.12,23.6877397]
[1744508331815,16.1193397,132.16,132.12,7.5684]
[1744508332914,16.1193397,132.17,132.12,23.6877397]
[1744508333108,16.1193397,132.16,132.12,7.5684]
[1744508333747,7.5658,132.18,132.12,23.6877397]
[1744508334047,16.1193397,132.17,132.12,23.6877397]
[1744508335235,16.1193397,132.16,132.12,7.5684]
[1744508335614,15.4455,132.18,132.12,23.6877397]
[1744508335813,23.9993397,132.18,132.13,16.1193397]
[1744508336224,31.5647397,132.18,132.13,16.1193397]
[1744508336421,16.1193397,132.17,132.12,23.6877397]
[1744508336620,15.4454,132.18,132.12,23.6877397]
[1744508336822,16.1193397,132.16,132.12,23.6877397]
[1744508337223,16.1193397,132.17,132.12,23.6877397]
[1744508337852,23.9993397,132.18,132.13,16.1193397]
[1744508338137,31.5647397,132.18,132.13,16.1193397]
[1744508339146,31.5648397,132.18,132.13,23.6874397]
[1744508339846,31.5648397,132.18,132.13,16.1193397]
[1744508340038,23.6848397,132.18,132.13,16.1193397]
[1744508340348,7.5655,132.18,132.13,16.1193397]
[1744508340526,7.5655,132.18,132.13,23.6876397]
[1744508340825,23.6848397,132.18,132.13,23.6876397]
[1744508342043,6.3856,132.22,132.16,16.1193397]
[1744508342365,16.1193397,132.22,132.17,16.1193397]
[1744508342644,16.1193397,132.21,132.16,16.1193397]
[1744508343241,7.88,132.23,132.17,16.1193397]
[1744508343547,31.5619397,132.23,132.18,16.1193397]
[1744508343739,16.1193397,132.22,132.17,16.1193397]
[1744508344124,16.1193397,132.22,132.16,7.5661]
[1744508344125,23.9993397,132.23,132.18,16.1193397]
[1744508344332,7.88,132.23,132.19,16.1193397]
[1744508344648,16.1193397,132.23,132.18,16.1193397]
[1744508345238,16.1193397,132.21,132.16,23.6854397]
[1744508345440,16.1193397,132.19,132.13,100.5194]
[1744508345648,0.28432314,132.21,132.14,16.1193397]
[1744508345833,16.1193397,132.19,132.14,16.1193397]
[1744508346649,16.1193397,132.17,132.13,7.5683]
[1744508346840,16.1193397,132.18,132.13,23.6876397]
[1744508347041,16.1193397,132.19,132.14,16.1193397]
[1744508347440,16.1193397,132.18,132.13,23.6876397]
[1744508348026,16.1193397,132.17,132.12,23.6880397]
[1744508350046,16.1193397,132.17,132.08,51.69444886]
[1744508350047,16.1193397,132.15,132.08,33.0448]
[1744508350249,16.1193397,132.13,132.09,7.5705]
[1744508350425,18.64964886,132.2,132.09,7.5705]
[1744508350426,1.0,132.21,132.09,7.5705]
[1744508350628,0.063,132.24,132.2,16.1193397]
[1744508351043,0.063,132.24,132.18,16.1193397]
[1744508351044,16.1193397,132.23,132.18,16.1193397]
[1744508351227,16.1823397,132.24,132.19,16.1193397]
[1744508351440,0.063,132.24,132.2,16.1193397]
[1744508352054,0.063,132.24,132.23,23.6818397]
[1744508352436,0.063,132.24,132.22,7.563]
[1744508352632,0.063,132.24,132.23,16.1193397]
[1744508353158,0.063,132.24,132.22,23.6823397]
[1744508353344,0.063,132.24,132.22,7.563]
[1744508353727,16.1823397,132.24,132.2,7.5638]
[1744508353934,16.1193397,132.23,132.2,7.5638]
[1744508354129,0.063,132.24,132.21,16.1193397]
[1744508354355,16.1823397,132.24,132.19,23.6841397]
[1744508354561,0.063,132.24,132.2,16.1193397]
[1744508355135,16.1823397,132.24,132.19,23.6841397]
[1744508355349,16.1193397,132.23,132.19,7.5648]
[1744508356243,16.1823397,132.24,132.19,16.1193397]
[1744508356539,16.1823397,132.24,132.18,16.1193397]
[1744508357067,16.1823397,132.24,132.19,16.1193397]
[1744508358150,0.063,132.24,132.2,23.6835397]
[1744508358737,0.063,132.24,132.22,16.1193397]
[1744508359656,0.063,132.24,132.23,16.1193397]
[1744508360241,0.063,132.24,132.23,23.6818397]
[1744508364063,0.0001,132.24,132.23,39.8011794]
[1744508364363,0.0001,132.24,132.23,23.6818397]
[1744508365458,0.0001,132.24,132.23,39.8011794]
[1744508365659,0.0001,132.26,132.24,18.79181043]
[1744508365858,0.0001,132.26,132.25,16.1193397]
[1744508366166,0.0001,132.26,132.25,97.7193397]
[1744508367250,0.0001,132.26,132.25,116.51115013]
[1744508367569,0.0001,132.26,132.25,132.01255013]
[1744508367747,0.0001,132.26,132.25,113.2207397]
[1744508368148,0.0001,132.26,132.25,132.01255013]
[1744508368358,0.0001,132.26,132.22,7.5631]
[1744508368554,0.0001,132.26,132.22,23.6824397]
[1744508369669,0.0001,132.26,132.23,16.1193397]
[1744508371869,0.0001,132.26,132.24,7.562]
[1744508372364,0.0001,132.26,132.24,23.6813397]
[1744508372564,0.0001,132.26,132.25,16.1193397]
[1744508372869,0.063,132.28,132.25,16.1193397]
[1744508373054,0.063,132.28,132.24,108.067]
[1744508373257,0.063,132.28,132.26,16.1193397]
[1744508373750,0.063,132.28,132.24,7.562]
[1744508373751,16.1823397,132.28,132.24,7.562]
[1744508373947,16.1193397,132.26,132.22,16.1193397]
[1744508374147,16.1193397,132.23,132.17,7.566]
[1744508374362,16.1193397,132.23,132.18,16.1193397]
[1744508375385,16.1193397,132.23,132.18,23.6842397]
[1744508375566,23.6820397,132.23,132.18,23.6842397]
[1744508375762,16.1193397,132.22,132.18,7.5649]
[1744508375949,23.6820397,132.23,132.18,7.5649]
[1744508376974,16.1193397,132.23,132.18,7.5649]
[1744508378173,16.1193397,132.19,132.13,7.5683]
[1744508378378,7.92,132.23,132.18,16.1193397]
[1744508378676,7.92,132.23,132.19,16.1193397]
[1744508378871,23.6816397,132.24,132.18,16.1193397]
[1744508379049,16.1193397,132.23,132.18,16.1193397]
[1744508379667,1.5101,132.25,132.2,16.1193397]
[1744508380078,1.5101,132.25,132.21,23.6830397]
[1744508380256,1.5101,132.25,132.21,7.5637]
[1744508380758,17.6294397,132.25,132.2,23.6834397]
[1744508380952,1.5101,132.25,132.21,16.1193397]
[1744508381155,16.1193397,132.26,132.21,16.1193397]
[1744508381473,16.1193397,132.25,132.15,20.70642314]
[1744508381673,7.5609,132.26,132.16,18.79181043]
[1744508381674,16.1193397,132.24,132.16,18.79181043]
[1744508381971,16.1193397,132.2,132.15,23.6864397]
[1744508382277,16.1193397,132.17,132.12,23.6877397]
[1744508383163,16.1193397,132.15,132.07,25.3195]
[1744508383365,16.1193397,132.15,132.09,16.1193397]
[1744508383878,16.1193397,132.15,132.1,16.1193397]
[1744508384267,16.1193397,132.15,132.1,23.6889397]
[1744508385775,16.1193397,132.14,132.09,23.6896397]
[1744508386362,16.1193397,132.12,132.06,7.94]
[1744508386582,16.1193397,132.13,132.08,16.1193397]
[1744508387272,17.6294397,132.14,132.09,16.1193397]
[1744508387473,16.1193397,132.13,132.08,16.1193397]
[1744508387689,1.5101,132.14,132.1,16.1193397]
[1744508387985,17.6294397,132.14,132.09,16.1193397]
[1744508388179,17.6294397,132.14,132.07,26.5008]
[1744508388180,25.1974397,132.14,132.08,16.1193397]
[1744508388380,22.7765397,132.11,132.06,0.03]
[1744508388682,6.6572,132.11,132.07,16.1193397]
[1744508390280,16.1193397,132.13,132.09,7.5705]
[1744508390481,16.1193397,132.11,132.06,16.1493397]
[1744508390982,16.1193397,132.1,132.06,7.6021]
[1744508391483,16.1193397,132.11,132.06,23.7214397]
[1744508391782,16.1193397,132.1,132.06,7.6021]
[1744508392164,16.1193397,132.09,132.06,0.03]
[1744508392367,16.1193397,132.08,132.06,0.03]
[1744508392560,16.1193397,132.09,132.06,0.03]
[1744508392794,16.1193397,132.1,132.06,0.03]
[1744508393661,16.1193397,132.09,132.06,0.03]
[1744508393864,16.1193397,132.08,132.06,0.03]
[1744508394478,16.1193397,132.07,132.06,0.03]
[1744508394699,16.1193397,132.08,132.06,0.03]
[1744508395363,16.1193397,132.09,132.06,0.03]
[1744508396392,16.1193397,132.08,132.06,0.03]
[1744508397293,10.08703757,132.08,132.06,0.03]
[1744508398072,10.08703757,132.09,132.06,0.03]
[1744508398269,10.08703757,132.08,132.06,0.03]
[1744508399304,7.5696,132.11,132.06,0.03]
[1744508399589,43.94703757,132.11,132.06,10.11703757]
[1744508399792,1.5101,132.14,132.1,10.08703757]
[1744508400279,19.16483757,132.14,132.09,10.08703757]
[1744508400478,19.16483757,132.14,132.06,0.03]
[1744508400779,10.08703757,132.13,132.08,10.08703757]
[1744508400980,10.08703757,132.12,132.08,10.08703757]
[1744508401178,10.08703757,132.09,132.06,0.03]
[1744508401363,16.13960619,132.08,132.06,0.03]
[1744508401564,22.64760619,132.07,132.06,0.03]
[1744508403395,26.0,132.04,132.01,0.03]
[1744508403575,61.21573976,132.02,132.01,0.03]
[1744508403896,42.5660909,132.02,132.01,0.03]
[1744508404193,42.5660909,132.02,132.0,0.03]
[1744508404194,51.35534595,132.01,132.0,0.03]
[1744508404371,26.0,131.98,131.96,2.6278131]
[1744508404565,16.13960619,131.97,131.96,2.6278131]
[1744508405093,7.86,131.98,131.96,2.6278131]
[1744508405383,16.13960619,131.99,131.96,2.6278131]
[1744508405563,16.13960619,132.0,131.96,2.6278131]
[1744508405763,16.13960619,131.99,131.96,2.6278131]
[1744508405990,16.13960619,131.98,131.96,2.6278131]
[1744508406300,8.021,132.02,131.96,26.34521929]
[1744508406468,16.13960619,132.01,131.96,26.34521929]
[1744508406663,24.16060619,132.02,131.97,16.13960619]
[1744508406877,24.16060619,132.02,131.98,7.5769]
[1744508407073,24.16060619,132.02,131.96,10.2053131]
[1744508407074,16.13960619,132.0,131.96,10.2053131]
[1744508407269,16.13960619,132.01,131.97,16.13960619]
[1744508407473,6.508,132.02,131.97,16.13960619]
[1744508407474,22.64760619,132.02,131.97,16.13960619]
[1744508407688,6.508,132.02,131.97,16.13960619]
[1744508407900,23.99960619,132.03,131.96,29.1504131]
[1744508408192,16.13960619,132.0,131.96,26.34491929]
[1744508408391,7.86,132.03,131.96,26.34491929]
[1744508408392,16.13960619,131.99,131.96,2.6278131]
[1744508408590,16.13960619,131.98,131.96,2.6278131]
[1744508408797,16.13960619,131.99,131.96,2.6278131]
[1744508408982,16.13960619,131.99,131.96,10.2058131]
[1744508409291,16.13960619,131.99,131.96,2.6278131]
[1744508409684,16.13960619,131.99,131.96,10.2058131]
[1744508409894,0.14216157,132.04,131.97,16.13960619]
[1744508410096,16.13960619,132.02,131.97,16.13960619]
[1744508410300,17.0725,132.05,131.98,16.13960619]
[1744508410589,16.13960619,132.03,131.98,16.13960619]
[1744508410993,16.13960619,132.02,131.97,16.13960619]
[1744508411195,7.5741,132.03,131.96,18.76741929]
[1744508411196,16.13960619,132.01,131.96,18.76741929]
[1744508411374,23.71470619,132.01,131.96,2.6278131]
[1744508411579,16.13960619,131.98,131.96,2.6278131]
[1744508411775,16.13960619,131.99,131.96,2.6278131]
[1744508411976,24.01960619,132.0,131.96,2.6278131]
[1744508412171,16.13960619,131.99,131.96,2.6278131]
[1744508412376,16.13960619,131.98,131.96,2.6278131]
[1744508412875,16.13960619,131.99,131.96,10.2057131]
[1744508413076,24.01960619,132.0,131.96,10.2057131]
[1744508413277,16.13960619,132.0,131.96,10.2057131]
[1744508413993,16.13960619,131.99,131.96,2.6278131]
[1744508414400,7.88,132.02,131.96,10.2056131]
[1744508414602,16.13960619,132.01,131.96,26.34521929]
[1744508414799,7.88,132.02,131.96,26.34521929]
[1744508414977,7.88,132.02,131.98,16.13960619]
[1744508415178,24.01960619,132.02,131.97,7.5772]
[1744508415383,16.13960619,132.0,131.96,2.6278131]
[1744508415689,16.13960619,132.01,131.96,10.2057131]
[1744508415889,16.13960619,132.01,131.96,26.34531929]
[1744508416282,7.88,132.02,131.97,16.13960619]
[1744508416483,16.13960619,132.01,131.96,10.2057131]
[1744508416681,16.13960619,132.0,131.96,2.6278131]
[1744508416905,7.88,132.02,131.96,26.34541929]
[1744508417210,24.01960619,132.02,131.98,7.5769]
[1744508418192,7.88,132.02,131.97,7.5773]
[1744508418391,24.01960619,132.02,131.97,7.5773]
[1744508418603,16.13960619,131.99,131.96,2.6278131]
[1744508418781,16.13960619,131.98,131.96,2.6278131]